fUST/lending_fUST_20260621
["ID","MTS","AMOUNT","RATE_DAILY","PERIOD"]
[425841807,1781974238000,-500.0,0.00016337,2]
[425841805,1781974238000,-500.0,0.00016337,2]
[425841796,1781974238000,-500.0,0.00016337,2]
[425841792,1781974238000,-500.0,0.00016337,2]
[425841794,1781974238000,-500.0,0.00016337,2]
[425841790,1781974238000,-500.0,0.00016337,2]
[425841800,1781974238000,-500.0,0.00016337,2]
[425841802,1781974238000,-500.0,0.00016337,2]
[425841804,1781974238000,-500.0,0.00016337,2]
[425841787,1781974238000,-61.33058779,0.00016337,2]
[425841811,1781974238000,-500.0,0.00016337,2]
[425841789,1781974238000,-500.0,0.00016337,2]
[425841798,1781974238000,-500.0,0.00016337,2]
[425841813,1781974238000,-26500.18575456,0.00016338,2]
[425841822,1781974238000,-500.0,0.00016437,2]
[425841815,1781974238000,-500.0,0.00016379,2]
[425841837,1781974238000,-1000.0,0.00016437,2]
[425841842,1781974238000,-394.559693,0.00016437,2]
[425841840,1781974238000,-1000.0,0.00016437,2]
[425841839,1781974238000,-1000.0,0.00016437,2]
[425841831,1781974238000,-500.0,0.00016437,2]
[425841833,1781974238000,-280.40892915,0.00016437,2]
[425841835,1781974238000,-1000.0,0.00016437,2]
[425841830,1781974238000,-500.0,0.00016437,2]
[425841826,1781974238000,-500.0,0.00016437,2]
[425841820,1781974238000,-186.0,0.0001638,2]
[425841818,1781974238000,-958.0,0.0001638,2]
[425841817,1781974238000,-561.67837039,0.00016379,2]
[425841824,1781974238000,-500.0,0.00016437,2]
[425841828,1781974238000,-500.0,0.00016437,2]
[425841925,1781974240000,-547.66936007,0.00016437,2]
[425842315,1781974243000,-500.0,0.00016438,2]
[425842313,1781974243000,-500.0,0.00016438,2]
[425842310,1781974243000,-500.0,0.00016438,2]
[425842317,1781974243000,-500.0,0.00016438,2]
[425842308,1781974243000,-57.77094693,0.00016437,2]
[425842327,1781974243000,-153.7982344,0.00016438,2]
[425842329,1781974243000,-758.61,0.00016438,2]
[425842321,1781974243000,-500.0,0.00016438,2]
[425842319,1781974243000,-500.0,0.00016438,2]
[425842322,1781974243000,-500.0,0.00016438,2]
[425842325,1781974243000,-500.0,0.00016438,2]
[425842416,1781974244000,-302.55,0.00016712,2]
[425842414,1781974244000,-500.0,0.00016712,2]
[425842410,1781974244000,-1000.0,0.0001671,2]
[425842406,1781974244000,-302.00000001,0.00016671,2]
[425842408,1781974244000,-459.568673,0.00016672,2]
[425842398,1781974244000,-500.0,0.00016438,2]
[425842396,1781974244000,-500.0,0.00016438,2]
[425842400,1781974244000,-500.0,0.00016438,2]
[425842404,1781974244000,-1223.31468324,0.00016556,2]
[425842394,1781974244000,-500.0,0.00016438,2]
[425842402,1781974244000,-162.731518,0.00016466,2]
[425842418,1781974244000,-500.0,0.00016712,2]
[425842442,1781974244000,-500.0,0.00016712,2]
[425842424,1781974244000,-758.61,0.00016712,2]
[425842434,1781974244000,-500.0,0.00016712,2]
[425842432,1781974244000,-500.0,0.00016712,2]
[425842426,1781974244000,-500.0,0.00016712,2]
[425842422,1781974244000,-500.0,0.00016712,2]
[425842430,1781974244000,-500.0,0.00016712,2]
[425842428,1781974244000,-368.31,0.00016712,2]
[425842436,1781974244000,-624.39,0.00016712,2]
[425842446,1781974244000,-554.6,0.00016712,2]
[425842444,1781974244000,-500.0,0.00016712,2]
[425842440,1781974244000,-500.0,0.00016712,2]
[425842438,1781974244000,-500.0,0.00016712,2]
[425842392,1781974244000,-500.0,0.00016438,2]
[425842420,1781974244000,-500.0,0.00016712,2]
[425842390,1781974244000,-500.0,0.00016438,2]
[425842361,1781974244000,-500.0,0.00016438,2]
[425842386,1781974244000,-500.0,0.00016438,2]
[425842331,1781974244000,-500.0,0.00016438,2]
[425842347,1781974244000,-500.0,0.00016438,2]
[425842332,1781974244000,-500.0,0.00016438,2]
[425842336,1781974244000,-500.0,0.00016438,2]
[425842352,1781974244000,-500.0,0.00016438,2]
[425842338,1781974244000,-500.0,0.00016438,2]
[425842354,1781974244000,-403.90012696,0.00016438,2]
[425842350,1781974244000,-500.0,0.00016438,2]
[425842345,1781974244000,-624.39,0.00016438,2]
[425842334,1781974244000,-500.0,0.00016438,2]
[425842340,1781974244000,-500.0,0.00016438,2]
[425842343,1781974244000,-500.0,0.00016438,2]
[425842355,1781974244000,-500.0,0.00016438,2]
[425842357,1781974244000,-554.6,0.00016438,2]
[425842363,1781974244000,-500.0,0.00016438,2]
[425842359,1781974244000,-500.0,0.00016438,2]
[425842448,1781974244000,-363.29641874,0.00016712,2]
[425842367,1781974244000,-500.0,0.00016438,2]
[425842365,1781974244000,-500.0,0.00016438,2]
[425842369,1781974244000,-485.41238703,0.00016438,2]
[425842379,1781974244000,-500.0,0.00016438,2]
[425842373,1781974244000,-500.0,0.00016438,2]
[425842377,1781974244000,-500.0,0.00016438,2]
[425842371,1781974244000,-583.19,0.00016438,2]
[425842375,1781974244000,-500.0,0.00016438,2]
[425842382,1781974244000,-194.22164818,0.00016438,2]
[425842384,1781974244000,-4830.4,0.00016438,2]
[425842388,1781974244000,-500.0,0.00016438,2]
[425842460,1781974244000,-500.0,0.00016712,2]
[425842412,1781974244000,-1000.0,0.00016711,2]
[425842456,1781974244000,-583.19,0.00016712,2]
[425842523,1781974244000,-1000.0,0.00016985,2]
[425842517,1781974244000,-300.0,0.00016766,2]
[425842532,1781974244000,-758.61,0.00016986,2]
[425842526,1781974244000,-1000.0,0.00016985,2]
[425842545,1781974244000,-500.0,0.00016986,2]
[425842553,1781974244000,-500.0,0.00016986,2]
[425842549,1781974244000,-500.0,0.00016986,2]
[425842547,1781974244000,-500.0,0.00016986,2]
[425842534,1781974244000,-500.0,0.00016986,2]
[425842555,1781974244000,-500.0,0.00016986,2]
[425842557,1781974244000,-583.19,0.00016986,2]
[425842536,1781974244000,-500.0,0.00016986,2]
[425842540,1781974244000,-500.0,0.00016986,2]
[425842551,1781974244000,-554.6,0.00016986,2]
[425842543,1781974244000,-624.39,0.00016986,2]
[425842561,1781974244000,-500.0,0.00016986,2]
[425842559,1781974244000,-500.0,0.00016986,2]
[425842563,1781974244000,-269.73259385,0.00016986,2]
[425842572,1781974244000,-500.0,0.00016986,2]
[425842566,1781974244000,-500.0,0.00016986,2]
[425842568,1781974244000,-4830.4,0.00016986,2]
[425842578,1781974244000,-500.0,0.00016986,2]
[425842576,1781974244000,-635.23079699,0.00016986,2]
[425842580,1781974244000,-500.0,0.00016986,2]
[425842570,1781974244000,-500.0,0.00016986,2]
[425842574,1781974244000,-500.0,0.00016986,2]
[425842458,1781974244000,-500.0,0.00016712,2]
[425842528,1781974244000,-500.0,0.00016986,2]
[425842530,1781974244000,-500.0,0.00016986,2]
[425842538,1781974244000,-505.47834725,0.00016986,2]
[425842515,1781974244000,-300.0,0.00016766,2]
[425842519,1781974244000,-195.49935945,0.00016809,2]
[425842452,1781974244000,-500.0,0.00016712,2]
[425842450,1781974244000,-500.0,0.00016712,2]
[425842467,1781974244000,-500.0,0.00016712,2]
[425842469,1781974244000,-500.0,0.00016712,2]
[425842471,1781974244000,-4830.4,0.00016712,2]
[425842473,1781974244000,-500.0,0.00016712,2]
[425842476,1781974244000,-500.0,0.00016712,2]
[425842482,1781974244000,-500.0,0.00016712,2]
[425842478,1781974244000,-500.0,0.00016712,2]
[425842480,1781974244000,-500.0,0.00016712,2]
[425842484,1781974244000,-500.0,0.00016712,2]
[425842486,1781974244000,-500.0,0.00016712,2]
[425842488,1781974244000,-300.0,0.00016766,2]
[425842454,1781974244000,-500.0,0.00016712,2]
[425842521,1781974244000,-234.91517922,0.00016948,2]
[425842492,1781974244000,-300.0,0.00016766,2]
[425842509,1781974244000,-300.0,0.00016766,2]
[425842513,1781974244000,-300.0,0.00016766,2]
[425842511,1781974244000,-300.0,0.00016766,2]
[425842495,1781974244000,-300.0,0.00016766,2]
[425842503,1781974244000,-300.0,0.00016766,2]
[425842499,1781974244000,-300.0,0.00016766,2]
[425842505,1781974244000,-300.0,0.00016766,2]
[425842501,1781974244000,-300.0,0.00016766,2]
[425842497,1781974244000,-300.0,0.00016766,2]
[425842490,1781974244000,-300.0,0.00016766,2]
[425842507,1781974244000,-300.0,0.00016766,2]
[425842639,1781974245000,-500.0,0.00017534,2]
[425842660,1781974245000,-583.19,0.00017534,2]
[425842655,1781974245000,-554.6,0.00017534,2]
[425842659,1781974245000,-500.0,0.00017534,2]
[425842635,1781974245000,-155.38029183,0.00017521,2]
[425842631,1781974245000,-500.0,0.0001726,2]
[425842633,1781974245000,-195.49935945,0.0001734,2]
[425842637,1781974245000,-1000.0,0.00017533,2]
[425842653,1781974245000,-500.0,0.00017534,2]
[425842646,1781974245000,-500.0,0.00017534,2]
[425842657,1781974245000,-500.0,0.00017534,2]
[425842649,1781974245000,-624.39,0.00017534,2]
[425842651,1781974245000,-500.0,0.00017534,2]
[425842664,1781974245000,-500.0,0.00017534,2]
[425842672,1781974245000,-500.0,0.00017534,2]
[425842678,1781974245000,-500.0,0.00017534,2]
[425842666,1781974245000,-500.0,0.00017534,2]
[425842668,1781974245000,-4830.4,0.00017534,2]
[425842674,1781974245000,-500.0,0.00017534,2]
[425842676,1781974245000,-500.0,0.00017534,2]
[425842670,1781974245000,-500.0,0.00017534,2]
[425842684,1781974245000,-500.0,0.00017808,2]
[425842680,1781974245000,-162.731518,0.00017621,2]
[425842682,1781974245000,-1000.0,0.00017807,2]
[425842688,1781974245000,-500.0,0.00017808,2]
[425842690,1781974245000,-500.0,0.00017808,2]
[425842686,1781974245000,-758.61,0.00017808,2]
[425842699,1781974245000,-500.0,0.00017808,2]
[425842663,1781974245000,-500.0,0.00017534,2]
[425842645,1781974245000,-500.0,0.00017534,2]
[425842582,1781974245000,-500.0,0.00016986,2]
[425842641,1781974245000,-758.61,0.00017534,2]
[425842694,1781974245000,-624.39,0.00017808,2]
[425842584,1781974245000,-1004.0,0.00016993,2]
[425842597,1781974245000,-500.0,0.0001726,2]
[425842601,1781974245000,-500.0,0.0001726,2]
[425842588,1781974245000,-181.305,0.00017147,2]
[425842586,1781974245000,-1419.94673193,0.00017035,2]
[425842599,1781974245000,-758.61,0.0001726,2]
[425842603,1781974245000,-500.0,0.0001726,2]
[425842605,1781974245000,-500.0,0.0001726,2]
[425842607,1781974245000,-624.39,0.0001726,2]
[425842590,1781974245000,-1000.0,0.00017259,2]
[425842593,1781974245000,-1000.0,0.00017259,2]
[425842609,1781974245000,-500.0,0.0001726,2]
[425842643,1781974245000,-500.0,0.00017534,2]
[425842595,1781974245000,-572.03670212,0.0001726,2]
[425842614,1781974245000,-554.6,0.0001726,2]
[425842622,1781974245000,-500.0,0.0001726,2]
[425842618,1781974245000,-500.0,0.0001726,2]
[425842616,1781974245000,-500.0,0.0001726,2]
[425842623,1781974245000,-500.0,0.0001726,2]
[425842624,1781974245000,-4830.4,0.0001726,2]
[425842625,1781974245000,-500.0,0.0001726,2]
[425842620,1781974245000,-583.19,0.0001726,2]
[425842628,1781974245000,-500.0,0.0001726,2]
[425842621,1781974245000,-500.0,0.0001726,2]
[425842627,1781974245000,-615.01,0.0001726,2]
[425842626,1781974245000,-500.0,0.0001726,2]
[425842629,1781974245000,-500.0,0.0001726,2]
[425842611,1781974245000,-500.0,0.0001726,2]
[425842701,1781974245000,-554.6,0.00017808,2]
[425842824,1781974245000,-8658.62989427,0.000183,2]
[425842703,1781974245000,-500.0,0.00017808,2]
[425842768,1781974245000,-183.26295292,0.00018082,2]
[425842776,1781974245000,-758.61,0.00018082,2]
[425842759,1781974245000,-911.00910701,0.00018082,2]
[425842763,1781974245000,-863.12136467,0.00018082,2]
[425842765,1781974245000,-310.65244809,0.00018082,2]
[425842761,1781974245000,-552.95062401,0.00018082,2]
[425842778,1781974245000,-500.0,0.00018082,2]
[425842780,1781974245000,-500.0,0.00018082,2]
[425842794,1781974245000,-500.0,0.00018082,2]
[425842796,1781974245000,-583.19,0.00018082,2]
[425842800,1781974245000,-500.0,0.00018082,2]
[425842798,1781974245000,-500.0,0.00018082,2]
[425842782,1781974245000,-500.0,0.00018082,2]
[425842774,1781974245000,-500.0,0.00018082,2]
[425842784,1781974245000,-624.39,0.00018082,2]
[425842786,1781974245000,-500.0,0.00018082,2]
[425842807,1781974245000,-500.0,0.00018082,2]
[425842792,1781974245000,-500.0,0.00018082,2]
[425842804,1781974245000,-4830.4,0.00018082,2]
[425842788,1781974245000,-500.0,0.00018082,2]
[425842811,1781974245000,-500.0,0.00018082,2]
[425842813,1781974245000,-500.0,0.00018082,2]
[425842817,1781974245000,-210.0,0.00018247,2]
[425842815,1781974245000,-175.12445426,0.000182,2]
[425842819,1781974245000,-170.55,0.00018247,2]
[425842809,1781974245000,-500.0,0.00018082,2]
[425842821,1781974245000,-169562.37047802,0.000183,2]
[425842692,1781974245000,-500.0,0.00017808,2]
[425842802,1781974245000,-500.0,0.00018082,2]
[425842772,1781974245000,-671.24017474,0.00018082,2]
[425842790,1781974245000,-554.6,0.00018082,2]
[425842767,1781974245000,-559.17440657,0.00018082,2]
[425842704,1781974245000,-500.0,0.00017808,2]
[425842710,1781974245000,-500.0,0.00017808,2]
[425842706,1781974245000,-583.19,0.00017808,2]
[425842718,1781974245000,-500.0,0.00017808,2]
[425842712,1781974245000,-500.0,0.00017808,2]
[425842708,1781974245000,-500.0,0.00017808,2]
[425842714,1781974245000,-4830.4,0.00017808,2]
[425842716,1781974245000,-500.0,0.00017808,2]
[425842696,1781974245000,-500.0,0.00017808,2]
[425842720,1781974245000,-639.86299525,0.00017808,2]
[425842725,1781974245000,-500.0,0.00017808,2]
[425842722,1781974245000,-500.0,0.00017808,2]
[425842726,1781974245000,-1419.94673193,0.00017832,2]
[425842728,1781974245000,-195.49935945,0.0001787,2]
[425842735,1781974245000,-2632.297969,0.00017938,2]
[425842757,1781974245000,-1000.0,0.00018081,2]
[425842755,1781974245000,-160.0,0.00018061,2]
[425842753,1781974245000,-160.0,0.00018061,2]
[425842730,1781974245000,-1000.0,0.00017898,2]
[425842747,1781974245000,-160.0,0.00018061,2]
[425842745,1781974245000,-160.0,0.00018061,2]
[425842749,1781974245000,-160.0,0.00018061,2]
[425842743,1781974245000,-160.0,0.00018061,2]
[425842739,1781974245000,-160.0,0.00018061,2]
[425842741,1781974245000,-160.0,0.00018061,2]
[425842733,1781974245000,-826.24147396,0.00017934,2]
[425842736,1781974245000,-175.12445426,0.00018,2]
[425842751,1781974245000,-160.0,0.00018061,2]
[425842770,1781974245000,-372.91120819,0.00018082,2]
[425842940,1781974246000,-3881.60523977,0.000183,2]
[425842943,1781974246000,-3103.38003982,0.000183,2]
[425842938,1781974246000,-111298.5069812,0.000183,2]
[425843177,1781974657000,3000.0,7.6e-05,2]
[425843178,1781974664000,3491.6564472,0.0001,2]
[425843220,1781975433000,-1602.12387162,0.00011876,2]
[425843219,1781975433000,-5000.0,0.00011757,2]
[425843248,1781975443000,-3672.4124041,0.00013,2]
[425843285,1781975446000,-505.78345698,0.000155,2]
[425843283,1781975446000,-199.1538993,0.0001498,2]
[425843284,1781975446000,-183.939474,0.00015068,2]
[425843282,1781975446000,-378.64797272,0.00013,2]
[425843286,1781975446000,-184.43855652,0.000155,2]
[425843289,1781975447000,-160.0,0.000157,2]
[425843288,1781975447000,-160.0,0.000157,2]
[425843287,1781975447000,-160.0,0.000157,2]
[425843293,1781975447000,-91.51841377,0.000157,2]
[425843292,1781975447000,-505.78345698,0.000157,2]
[425843291,1781975447000,-160.0,0.000157,2]
[425843290,1781975447000,-417.15472785,0.000157,2]
[425843379,1781976632000,-300.0,0.00013703,2]
[425843370,1781976632000,-626.9028985,0.00013508,2]
[425843366,1781976632000,-1499.23912855,0.00013435,2]
[425843368,1781976632000,-828.04347501,0.00013436,7]
[425843364,1781976632000,-4007.8454605,0.00013335,2]
[425843362,1781976632000,-300.0,0.00013334,2]
[425843377,1781976632000,-300.0,0.00013703,2]
[425843373,1781976632000,-300.0,0.00013703,2]
[425843375,1781976632000,-300.0,0.00013703,2]
[425843372,1781976632000,-204.169,0.00013642,2]
[425843351,1781976632000,-200.0,0.00011586,7]
[425843359,1781976632000,-828.04347497,0.00012596,7]
[425843355,1781976632000,-828.04347497,0.00011996,7]
[425843357,1781976632000,-828.04347497,0.00012236,7]
[425843353,1781976632000,-151.0,0.00011636,2]
[425843349,1781976632000,-200.0,0.00011586,2]
[425843345,1781976632000,-4110.42963586,0.00010951,2]
[425843343,1781976632000,-385.37036414,0.00010951,2]
[425843347,1781976632000,-151.0,0.00011287,2]
[425843337,1781976632000,-504.2,0.00010951,2]
[425843384,1781976632000,-300.0,0.00013703,2]
[425843361,1781976632000,-828.04347497,0.00012956,7]
[425843380,1781976632000,-300.0,0.00013703,2]
[425843404,1781976632000,-300.0,0.00014618,2]
[425843388,1781976632000,-300.0,0.00013703,2]
[425843382,1781976632000,-300.0,0.00013703,2]
[425843417,1781976632000,-277.35869925,0.000155,2]
[425843419,1781976632000,-160.0,0.00015543,2]
[425843424,1781976632000,-160.0,0.00015543,2]
[425843426,1781976632000,-111.41454453,0.00015543,2]
[425843415,1781976632000,-303.47007418,0.000155,2]
[425843421,1781976632000,-160.0,0.00015543,2]
[425843413,1781976632000,-538.83736883,0.00015462,2]
[425843422,1781976632000,-160.0,0.00015543,2]
[425843409,1781976632000,-720.0,0.00015374,2]
[425843408,1781976632000,-365.148198,0.00015274,2]
[425843411,1781976632000,-500.0,0.00015462,2]
[425843402,1781976632000,-172.0,0.00014206,2]
[425843400,1781976632000,-600.0,0.00013976,2]
[425843391,1781976632000,-300.0,0.00013703,2]
[425843393,1781976632000,-300.0,0.00013703,2]
[425843386,1781976632000,-300.0,0.00013703,2]
[425843429,1781976632000,-305.74018332,0.00015543,2]
[425843398,1781976632000,-300.0,0.00013703,2]
[425843397,1781976632000,-300.0,0.00013703,2]
[425843389,1781976632000,-300.0,0.00013703,2]
[425843406,1781976632000,-365.148198,0.00014657,2]
[425843395,1781976632000,-300.0,0.00013703,2]
[425843442,1781976633000,-219.40995206,0.00015732,2]
[425843440,1781976633000,-280.59004794,0.00015732,2]
[425843436,1781976633000,-500.0,0.00015732,2]
[425843451,1781976633000,-500.0,0.00015736,2]
[425843434,1781976633000,-303.47007418,0.000157,2]
[425843433,1781976633000,-160.0,0.00015699,2]
[425843444,1781976633000,-241.13047577,0.00015732,2]
[425843449,1781976633000,-500.0,0.00015736,2]
[425843431,1781976633000,-887.4667075,0.00015633,2]
[425843438,1781976633000,-500.0,0.00015732,2]
[425843447,1781976633000,-271.25167804,0.00015732,2]
[425843452,1781976633000,-500.0,0.00015736,2]
[425843446,1781976633000,-500.0,0.00015732,2]
[425843454,1781976633000,-500.0,0.00015736,2]
[425843453,1781976633000,-500.0,0.00015736,2]
[425843464,1781976633000,-3070.300226,0.00015886,2]
[425843456,1781976633000,-500.0,0.00015736,2]
[425843461,1781976633000,-206.41716342,0.000158,2]
[425843463,1781976633000,-160.0,0.00015886,2]
[425843460,1781976633000,-303.47007418,0.000158,2]
[425843466,1781976633000,-880.11671611,0.00015886,2]
[425843465,1781976633000,-1376.98619891,0.00015886,2]
[425843457,1781976633000,-500.0,0.00015736,2]
[425843458,1781976633000,-500.0,0.00015736,2]
[425843459,1781976633000,-518.1278209,0.00015736,2]
[425843462,1781976633000,-206.41716341,0.00015861,2]
[425843455,1781976633000,-500.0,0.00015736,2]
[425843480,1781976638000,-500.0,0.00015732,2]
[425843478,1781976638000,-151.0,0.0001073,2]
[425843479,1781976638000,-500.0,0.00015732,2]
[425843508,1781976639000,-500.0,0.00016029,2]
[425843510,1781976639000,-500.0,0.00016029,2]
[425843504,1781976639000,-303.47007418,0.00016,2]
[425843503,1781976639000,-3000.0,0.00016,2]
[425843505,1781976639000,-151.0,0.00016,2]
[425843509,1781976639000,-551.72,0.00016029,2]
[425843507,1781976639000,-3000.0,0.0001602,2]
[425843515,1781976639000,-3000.0,0.0001604,2]
[425843522,1781976639000,-3000.0,0.0001611,2]
[425843512,1781976639000,-500.0,0.00016029,2]
[425843511,1781976639000,-500.0,0.00016029,2]
[425843513,1781976639000,-602.78739521,0.00016029,2]
[425843518,1781976639000,-3000.0,0.0001607,2]
[425843517,1781976639000,-3000.0,0.0001606,2]
[425843519,1781976639000,-3000.0,0.0001608,2]
[425843506,1781976639000,-3000.0,0.0001601,2]
[425843520,1781976639000,-3000.0,0.0001609,2]
[425843514,1781976639000,-3000.0,0.0001603,2]
[425843502,1781976639000,-500.0,0.00015999,2]
[425843494,1781976639000,-315.39427146,0.000159,2]
[425843499,1781976639000,-160049.84405945,0.0001593,2]
[425843521,1781976639000,-3000.0,0.000161,2]
[425843481,1781976639000,-500.0,0.00015732,2]
[425843482,1781976639000,-500.0,0.00015732,2]
[425843483,1781976639000,-500.0,0.00015732,2]
[425843484,1781976639000,-500.0,0.00015732,2]
[425843485,1781976639000,-500.0,0.00015732,2]
[425843488,1781976639000,-165.306122,0.00015886,2]
[425843486,1781976639000,-500.0,0.00015732,2]
[425843490,1781976639000,-365.148198,0.00015891,2]
[425843487,1781976639000,-3723.49753698,0.00015886,2]
[425843497,1781976639000,-325.21564427,0.00015929,2]
[425843489,1781976639000,-162.463557,0.00015886,2]
[425843491,1781976639000,-288.41679063,0.000159,2]
[425843492,1781976639000,-311.82014802,0.000159,2]
[425843496,1781976639000,-326.64874779,0.000159,2]
[425843498,1781976639000,-937343.29838449,0.0001593,2]
[425843500,1781976639000,-1250.72733513,0.00015961,2]
[425843501,1781976639000,-500.0,0.00015999,2]
[425843523,1781976639000,-171.428572,0.00016117,2]
[425843516,1781976639000,-3000.0,0.0001605,2]
[425843530,1781976639000,-151.0,0.00016147,2]
[425843548,1781976639000,-3000.0,0.0001624,2]
[425843547,1781976639000,-1000.0,0.00016239,2]
[425843549,1781976639000,-3000.0,0.0001625,2]
[425843551,1781976639000,-3000.0,0.0001627,2]
[425843552,1781976639000,-167.915799,0.0001627,2]
[425843550,1781976639000,-3000.0,0.0001626,2]
[425843555,1781976639000,-3000.0,0.000163,2]
[425843553,1781976639000,-3000.0,0.0001628,2]
[425843546,1781976639000,-1000.0,0.00016239,2]
[425843556,1781976639000,-1000.0,0.00016309,2]
[425843558,1781976639000,-3000.0,0.0001632,2]
[425843559,1781976639000,-3000.0,0.0001633,2]
[425843561,1781976639000,-151.0,0.0001634,2]
[425843560,1781976639000,-3000.0,0.0001634,2]
[425843562,1781976639000,-3000.0,0.0001635,2]
[425843563,1781976639000,-3000.0,0.0001636,2]
[425843565,1781976639000,-624.70322431,0.00016379,2]
[425843524,1781976639000,-3000.0,0.0001612,2]
[425843557,1781976639000,-3000.0,0.0001631,2]
[425843544,1781976639000,-1000.0,0.00016239,2]
[425843554,1781976639000,-3000.0,0.0001629,2]
[425843543,1781976639000,-1000.0,0.00016239,2]
[425843529,1781976639000,-5710.0148,0.00016147,2]
[425843526,1781976639000,-3000.0,0.0001614,2]
[425843528,1781976639000,-2935.0074,0.00016147,2]
[425843525,1781976639000,-3000.0,0.0001613,2]
[425843527,1781976639000,-160.0,0.00016147,2]
[425843533,1781976639000,-3000.0,0.0001616,2]
[425843534,1781976639000,-160.0,0.0001616,2]
[425843532,1781976639000,-3000.0,0.0001615,2]
[425843545,1781976639000,-1000.0,0.00016239,2]
[425843536,1781976639000,-3000.0,0.0001618,2]
[425843531,1781976639000,-151.0,0.00016147,2]
[425843535,1781976639000,-3000.0,0.0001617,2]
[425843537,1781976639000,-3000.0,0.0001619,2]
[425843539,1781976639000,-303.47007418,0.000162,2]
[425843538,1781976639000,-3000.0,0.000162,2]
[425843540,1781976639000,-3000.0,0.0001621,2]
[425843541,1781976639000,-3000.0,0.0001622,2]
[425843542,1781976639000,-3000.0,0.0001623,2]
[425843564,1781976639000,-3000.0,0.0001637,2]
[425843571,1781976641000,-930.87522282,0.0001638,2]
[425843573,1781976641000,-1389.0,0.0001638,2]
[425843572,1781976641000,-1004.56995082,0.0001638,2]
[425843570,1781976641000,-375.29677569,0.00016379,2]
[425843618,1781976647000,-548.4024801,0.00016435,2]
[425843616,1781976647000,-582.02532336,0.0001638,2]
[425843617,1781976647000,-160.0,0.00016407,2]
[425843615,1781976647000,-1566.57219654,0.00016157,2]
[425843631,1781977156000,1322.95446306,0.00022999,30]
[425843692,1781977831000,-300.75812186,0.00013992,2]
[425843704,1781977831000,-300.0,0.0001427,2]
[425843703,1781977831000,-300.0,0.0001427,2]
[425843691,1781977831000,-630.06536779,0.00013992,2]
[425843689,1781977831000,-3545.50434467,0.00013173,2]
[425843687,1781977831000,-428.58298388,0.00013173,2]
[425843685,1781977831000,-155.21875911,0.00012907,2]
[425843694,1781977831000,-645.421506,0.00013992,2]
[425843690,1781977831000,-364.02246611,0.00013992,2]
[425843699,1781977831000,-300.0,0.0001427,2]
[425843693,1781977831000,-605.52935036,0.00013992,2]
[425843695,1781977831000,-1193.31586621,0.00013992,2]
[425843698,1781977831000,-300.0,0.0001427,2]
[425843708,1781977831000,-300.0,0.0001427,2]
[425843706,1781977831000,-300.0,0.0001427,2]
[425843705,1781977831000,-300.0,0.0001427,2]
[425843700,1781977831000,-300.0,0.0001427,2]
[425843707,1781977831000,-300.0,0.0001427,2]
[425843702,1781977831000,-300.0,0.0001427,2]
[425843697,1781977831000,-1434.49025883,0.00013992,2]
[425843701,1781977831000,-300.0,0.0001427,2]
[425843696,1781977831000,-428.20122607,0.00013992,2]
[425843709,1781977832000,-300.0,0.0001427,2]